Workbook

Sheet Instructions and Summary
A1: Budget Justification for SF 424A Budget | F1: Last Updated / Version # : | H1: 06/21/18 V 6.18
A2: Instructions and Summary
A3: Control Number: | D3: Original Date of Submission:
A4: Award Recipient: | D4: Submitted by: | H4: (Recipient or Subrecipient)
A6: Please read the instructions on each tab before starting. If you have any questions, please submit to ARPA-E-CO@hq.doe.gov. It will save you time! Double check all fields highlighted in yellow!
A7: • This worksheet auto populates when data is entered on subsequent tabs (a. Personnel, b. Fringe Benefits, c. Travel, d. Equipment, e. Supplies, f. Contractual, g. Other, h. Indirect Costs, Cost Share). The term “tab” refers to a worksheet within the Budget Justification Workbook. Each tab may be found and accessed at the bottom of this Workbook. On this Instructions and Summary tab the award recipient should update Control Number, Award Recipient, Original Date of Submission, Submitted By and the Comments section as needed. If this is a new version please ensure to update the Last Updated / Version # in the top right of this sheet. X • The Prime Recipient must complete this Budget Justification Workbook. In addition, each Subrecipient incurring greater than or equal to 10% of the Total Project Cost must complete an additional Budget Justification Workbook to justify its proposed budget. The Subrecipient's Budget Justification Workbook total project costs must match the amount on tab f. Contractual in the Prime Recipient’s Budget Justification Workbook. All documents should be submitted as one package to ARPA-E, however, Subrecipients can provide budget documents directly to ARPA-E if necessary. The Prime Recipient’s Budget Justification Workbook will not be reviewed until all supporting documentation is submitted. • The total budget presented in the Budget Justification Workbook and the SF-424A must include both Federal (ARPA-E) and Non-Federal (cost share) expenditures, the sum of which equals the Total Project Cost proposed by the Applicant. All costs, whether paid with Federal funding or by the Project Team, must be justified. • Each budget category will automatically populate in the second tab in this Budget Justification Workbook (SF-424A). The totals in each budget category and the Total Project Cost must be the same in the SF-424A and the Budget Justification Workbook. The award recipient must review the SF-424A, fill in the award number and fill in Section D (Projected Cash Flows) in the SF-424A tab. • All costs incurred by the Prime Recipient’s Subrecipients, vendors, contractors, consultants and Federally Funded Research and Development Centers (FFRDCs), must be entered in tab f. Contractual. All other sections are for the costs of the Prime Recipient only. • No individual may be paid more than $200,000 per year under an ARPA-E funding agreement. • All expenditures must be allowable, allocable, and reasonable in accordance with the applicable Federal cost principles.
A9: SUMMARY OF BUDGET CATEGORY COSTS PROPOSED (Note: The values in this summary table are from entries made in each budget category tab.)
A10: CATEGORY | B10: Phase I (12 Months) | C10: Phase II-Year 1(12 Months) | D10: Phase II-Year 2 (12 Months) | E10: Phase IIS (12 Months) | F10: Total | G10: Project Costs % | H10: Comments (Add comments as needed)
A11: a. Personnel | B11: =ROUND('a. Personnel'!E182,0) -> 0 | C11: =ROUND('a. Personnel'!H182,0) -> 0 | D11: =ROUND('a. Personnel'!K182,0) -> 0 | E11: =ROUND('a. Personnel'!N182,0) -> 0 | F11: =SUM(B11:E11) -> 0 | G11: =IFERROR(F11/$F$24,"") -> 
A12: b. Fringe Benefits | B12: =ROUND('b. Fringe Benefits'!D10,0) -> 0 | C12: =ROUND('b. Fringe Benefits'!E10,0) -> 0 | D12: =ROUND('b. Fringe Benefits'!F10,0) -> 0 | E12: =ROUND('b. Fringe Benefits'!G10,0) -> 0 | F12: =SUM(B12:E12) -> 0 | G12: =IFERROR(F12/$F$24,"") -> 
A13: c. Travel | B13: =ROUND('c. Travel'!G49,0) -> 0 | C13: =ROUND('c. Travel'!G96,0) -> 0 | D13: =ROUND('c. Travel'!G146,0) -> 0 | E13: =ROUND('c. Travel'!G196,0) -> 0 | F13: =SUM(B13:E13) -> 0 | G13: =IFERROR(F13/$F$24,"") -> 
A14: d. Equipment | B14: =ROUND('d. Equipment'!D44,0) -> 0 | C14: =ROUND('d. Equipment'!D95,0) -> 0 | D14: =ROUND('d. Equipment'!D151,0) -> 0 | E14: =ROUND('d. Equipment'!D207,0) -> 0 | F14: =SUM(B14:E14) -> 0 | G14: =IFERROR(F14/$F$24,"") -> 
A15: e. Supplies | B15: =ROUND('e. Supplies'!D80,0) -> 0 | C15: =ROUND('e. Supplies'!D152,0) -> 0 | D15: =ROUND('e. Supplies'!D222,0) -> 0 | E15: =ROUND('e. Supplies'!D292,0) -> 0 | F15: =SUM(B15:E15) -> 0 | G15: =IFERROR(F15/$F$24,"") -> 
A16: f. Contractual
A17: Sub-recipient | B17: =ROUND('f. Contractual'!C21,0) -> 0 | C17: =ROUND('f. Contractual'!D21,0) -> 0 | D17: =ROUND('f. Contractual'!E21,0) -> 0 | E17: =ROUND('f. Contractual'!F21,0) -> 0 | F17: =SUM(B17:E17) -> 0 | G17: =IFERROR(F17/$F$24,"") -> 
A18: FFRDC (Separate Work Authorization or other Sub-Award) | B18: =ROUND('f. Contractual'!C52,0) -> 0 | C18: =ROUND('f. Contractual'!D52,0) -> 0 | D18: =ROUND('f. Contractual'!E52,0) -> 0 | E18: =ROUND('f. Contractual'!F52,0) -> 0 | F18: 0
A19: Vendor | B19: =ROUND('f. Contractual'!C40,0) -> 0 | C19: =ROUND('f. Contractual'!D40,0) -> 0 | D19: =ROUND('f. Contractual'!E40,0) -> 0 | E19: =ROUND('f. Contractual'!F40,0) -> 0 | F19: 0
A20: Total Contractual | B20: =SUM(B17:B19) -> 0 | C20: =SUM(C17:C19) -> 0 | D20: =SUM(D17:D19) -> 0 | E20: =SUM(E17:E19) -> 0 | F20: 0
A21: g. Construction | B21: =ROUND('g. Construction'!B16,0) -> 0 | C21: =ROUND('g. Construction'!B24,0) -> 0 | D21: =ROUND('g. Construction'!B32,0) -> 0 | E21: =ROUND('g. Construction'!B40,0) -> 0 | F21: 0
A22: h. Other Direct Costs | B22: =ROUND('h. Other'!B43,0) -> 0 | C22: =ROUND('h. Other'!B64,0) -> 0 | D22: =ROUND('h. Other'!B85,0) -> 0 | E22: =ROUND('h. Other'!B106,0) -> 0 | F22: 0
A23: i. Indirect Charges | B23: =ROUND('i. Indirect Costs'!D9,0) -> 0 | C23: =ROUND('i. Indirect Costs'!E9,0) -> 0 | D23: =ROUND('i. Indirect Costs'!F9,0) -> 0 | E23: =ROUND('i. Indirect Costs'!G9,0) -> 0 | F23: 0
A24: Total Project Costs | B24: =SUM(B11:B15,B20:B23) -> 0 | C24: =SUM(C11:C15,C20:C23) -> 0 | D24: 0 | E24: 0 | F24: =SUM(F11:F15,F20:F23) -> 0 | G24: =IFERROR(SUM(G11:G23)-G20,"") -> 
A26: Additional Explanations/Comments (as necessary):

Sheet SF-424A (Rev. 4-92) (hidden)
A1: Applicant Name: | E1: Award Number:
A2: Budget Information - Non Construction Programs
A3: OMB Approval No. 0348-0044
A4: Section A - Budget Summary
B5: Grant Program Function or Activity | C5: Catalog of Federal Domestic Assistance Number | D5: Estimated Unobligated Funds | F5: New or Revised Budget
D6: Federal | E6: Non-Federal | F6: Federal | G6: Non-Federal | H6: Total
B7: (a) | C7: (b) | D7: (c ) | E7: (d) | F7: (e) | G7: (f) | H7: (g)
A8: 1. | H8: =SUM(D8:G8) -> 0
A9: 2. | H9: =SUM(D9:G9) -> 0
A10: 3. | H10: =SUM(D10:G10) -> 0
A11: 4. | H11: =SUM(D11:G11) -> 0
A12: 5. | B12: Totals | D12: =SUM(D8:D11) -> 0 | E12: =SUM(E8:E11) -> 0 | F12: =SUM(F8:F11) -> 0 | G12: =SUM(G8:G11) -> 0 | H12: =SUM(H8:H11) -> 0
A13: Section B - Budget Categories
A14: 6. | B14: Object Class Categories | D14: Grant Program, Function or Activity | H14: Total (5)
D15: (1) | E15: (2) | F15: (3) | G15: (4)
B16: a. Personnel | H16: =SUM(D16:G16) -> 0
B17: b. Fringe Benefits | H17: 0
B18: c. Travel | H18: 0
B19: d. Equipment | H19: 0
B20: e. Supplies | H20: 0
B21: f. Contractual | H21: 0
B22: g. Construction | H22: 0
B23: h. Other | H23: 0
B24: i. Total Direct Charges (sum of 6a-6h) | D24: =SUM(D16:D23) -> 0 | E24: =SUM(E16:E23) -> 0 | F24: =SUM(F16:F23) -> 0 | G24: =SUM(G16:G23) -> 0 | H24: 0
B25: j. Indirect Charges | H25: 0
B26: k. Totals (sum of 6i-6j) | D26: =SUM(D24:D25) -> 0 | E26: =SUM(E24:E25) -> 0 | F26: =SUM(F24:F25) -> 0 | G26: =SUM(G24:G25) -> 0 | H26: =SUM(H24:H25) -> 0
A28: 7. | B28: Program Income | H28: =SUM(D28:G28) -> 0
H30: SF-424A (Rev. 4-92)
A31: Previous Edition Usable | G31: Prescribed by OMB Circular A-102
A32: Authorized for Local Reproduction
A34: Section C - Non-Federal Resources
B35: (a) Grant Program | E35: (b) Applicant | F35: (c ) State | G35: (d) Other Sources | H35: (e) Totals
A36: 8. | H36: =SUM(E36:G36) -> 0
A37: 9. | H37: =SUM(E37:G37) -> 0
A38: 10. | H38: =SUM(E38:G38) -> 0
A39: 11. | H39: =SUM(E39:G39) -> 0
A40: 12. | B40: Total (sum of lines 8 - 11) | E40: =SUM(E36:E39) -> 0 | F40: =SUM(F36:F39) -> 0 | G40: =SUM(G36:G39) -> 0 | H40: =SUM(H36:H39) -> 0
A41: Section D - Forecasted Cash Needs
D42: Total for 1st Year | E42: 1st Quarter | F42: 2nd Quarter | G42: 3rd Quarter | H42: 4th quarter
A43: 13. | B43: Federal | D43: =SUM(E43:H43) -> 0
A44: 14. | B44: Non-Federal | D44: =SUM(E44:H44) -> 0
A45: 15. | B45: Total (sum of lines 13 and 14) | D45: =SUM(D43:D44) -> 0 | E45: =SUM(E43:E44) -> 0 | F45: =SUM(F43:F44) -> 0 | G45: =SUM(G43:G44) -> 0 | H45: =SUM(H43:H44) -> 0
A46: Section E - Budget Estimates of Federal Funds Needed for Balance of the Project
A47: (a) Grant Program | E47: Future Funding Periods (Years)
E48: (b) First | F48: (c ) Second | G48: (d) Third | H48: (e) Fourth
A49: 16.
A50: 17.
A51: 18.
A52: 19.
A53: 20. | B53: Total (sum of lines 16-19) | E53: =SUM(E49:E52) -> 0 | F53: =SUM(F49:F52) -> 0 | G53: =SUM(G49:G52) -> 0 | H53: =SUM(H49:H52) -> 0
A54: Section F - Other Budget Information
A55: 21. Direct Charges | E55: 22. Indirect Charges
A57: 23. Remarks
H61: SF-424A (Rev. 4-92)
A62: Previous Edition Usable | H62: Prescribed by OMB Circular A-102
C63: Authorized for Local Reproduction

Sheet SF-424A
A1: Applicant Name: | C1: ='Instructions and Summary'!B4 -> 0 | E1: Award Number:
A2: Budget Information - Non Construction Programs
A3: OMB Approval No. 0348-0044
A4: Section A - Budget Summary
B5: Grant Program Function or Activity | C5: Catalog of Federal Domestic Assistance Number | E5: Estimated Unobligated Funds | G5: New or Revised Budget
E6: Federal | F6: Non-Federal | G6: Federal | H6: Non-Federal | I6: Total
B7: (a) | C7: (b) | E7: (c ) | F7: (d) | G7: (e) | H7: (f) | I7: (g)
A8: 1. | B8: Phase I (12 Months) | C8: 81.135 | G8: =ROUND($D$27-H8,0) -> 0 | H8: =ROUND('Cost Share'!E25,0) -> 0 | I8: =SUM(D8:H8) -> 0
A9: 2. | B9: Phase II-Year 1(12 Months) | C9: 81.135 | G9: =ROUND($E$27-H9,0) -> 0 | H9: =ROUND('Cost Share'!F25,0) -> 0 | I9: =SUM(D9:H9) -> 0
A10: 3. | B10: Phase II-Year 2 (12 Months) | C10: 81.135 | G10: =ROUND($F$27-H10,0) -> 0 | H10: =ROUND('Cost Share'!G25,0) -> 0 | I10: =SUM(D10:H10) -> 0
A11: 4. | B11: Phase IIS (12 Months) | C11: 81.135 | G11: =ROUND($G$27-H11,0) -> 0 | H11: =ROUND('Cost Share'!H25,0) -> 0 | I11: =SUM(D11:H11) -> 0
A13: 6. | B13: Totals | E13: =SUM(E8:E11) -> 0 | F13: =SUM(F8:F11) -> 0 | G13: =SUM(G8:G11) -> 0 | H13: =SUM(H8:H11) -> 0 | I13: =SUM(I8:I11) -> 0
A14: Section B - Budget Categories
A15: 6. | B15: Object Class Categories | D15: Grant Program, Function or Activity | I15: Total (5)
D16: Phase I (12 Months) | E16: Phase II-Year 1(12 Months) | F16: Phase II-Year 2 (12 Months) | G16: Phase IIS (12 Months)
B17: a. Personnel | D17: ='Instructions and Summary'!B11 -> 0 | E17: ='Instructions and Summary'!C11 -> 0 | F17: ='Instructions and Summary'!D11 -> 0 | G17: ='Instructions and Summary'!E11 -> 0 | I17: =SUM(D17:H17) -> 0
B18: b. Fringe Benefits | D18: ='Instructions and Summary'!B12 -> 0 | E18: ='Instructions and Summary'!C12 -> 0 | F18: ='Instructions and Summary'!D12 -> 0 | G18: ='Instructions and Summary'!E12 -> 0 | I18: =SUM(D18:H18) -> 0
B19: c. Travel | D19: ='Instructions and Summary'!B13 -> 0 | E19: ='Instructions and Summary'!C13 -> 0 | F19: ='Instructions and Summary'!D13 -> 0 | G19: ='Instructions and Summary'!E13 -> 0 | I19: 0
B20: d. Equipment | D20: ='Instructions and Summary'!B14 -> 0 | E20: ='Instructions and Summary'!C14 -> 0 | F20: ='Instructions and Summary'!D14 -> 0 | G20: ='Instructions and Summary'!E14 -> 0 | I20: 0
B21: e. Supplies | D21: ='Instructions and Summary'!B15 -> 0 | E21: ='Instructions and Summary'!C15 -> 0 | F21: ='Instructions and Summary'!D15 -> 0 | G21: ='Instructions and Summary'!E15 -> 0 | I21: 0
B22: f. Contractual | D22: ='Instructions and Summary'!B20 -> 0 | E22: ='Instructions and Summary'!C20 -> 0 | F22: ='Instructions and Summary'!D20 -> 0 | G22: ='Instructions and Summary'!E20 -> 0 | I22: 0
B23: g. Construction | D23: ='Instructions and Summary'!B21 -> 0 | E23: ='Instructions and Summary'!C21 -> 0 | F23: ='Instructions and Summary'!D21 -> 0 | G23: ='Instructions and Summary'!E21 -> 0 | I23: 0
B24: h. Other | D24: ='Instructions and Summary'!B22 -> 0 | E24: ='Instructions and Summary'!C22 -> 0 | F24: ='Instructions and Summary'!D22 -> 0 | G24: ='Instructions and Summary'!E22 -> 0 | I24: 0
B25: i. Total Direct Charges (sum of 6a-6h) | D25: =SUM(D17:D24) -> 0 | E25: =SUM(E17:E24) -> 0 | F25: =SUM(F17:F24) -> 0 | G25: =SUM(G17:G24) -> 0 | I25: =SUM(D25:H25) -> 0
B26: j. Indirect Charges | D26: ='Instructions and Summary'!B23 -> 0 | E26: ='Instructions and Summary'!C23 -> 0 | F26: ='Instructions and Summary'!D23 -> 0 | G26: ='Instructions and Summary'!E23 -> 0 | I26: =SUM(D26:H26) -> 0
B27: k. Totals (sum of 6i-6j) | D27: =SUM(D25:D26) -> 0 | E27: =SUM(E25:E26) -> 0 | F27: =SUM(F25:F26) -> 0 | G27: =SUM(G25:G26) -> 0 | I27: =SUM(I25:I26) -> 0
A29: 7. | B29: Program Income | I29: =SUM(D29:G29) -> 0
I31: SF-424A (Rev. 4-92)
A32: Previous Edition Usable | G32: Prescribed by OMB Circular A-102
A33: Authorized for Local Reproduction
A35: Section C - Non-Federal Resources
B36: (a) Grant Program | E36: (b) Applicant | F36: (c ) State | G36: (d) Other Sources | H36: (e) Totals
A37: 8. | E37: =ROUND('Cost Share'!L13,0) -> 0 | F37: =ROUND('Cost Share'!L14,0) -> 0 | G37: =ROUND('Cost Share'!L15,0) -> 0 | H37: =SUM(E37:G37) -> 0
A38: 9. | E38: =ROUND('Cost Share'!M13,0) -> 0 | F38: =ROUND('Cost Share'!M14,0) -> 0 | G38: =ROUND('Cost Share'!M15,0) -> 0 | H38: =SUM(E38:G38) -> 0
A39: 10. | E39: =ROUND('Cost Share'!N13,0) -> 0 | F39: =ROUND('Cost Share'!N14,0) -> 0 | G39: =ROUND('Cost Share'!N15,0) -> 0 | H39: =SUM(E39:G39) -> 0
A40: 11. | E40: =ROUND('Cost Share'!O13,0) -> 0 | F40: =ROUND('Cost Share'!O14,0) -> 0 | G40: =ROUND('Cost Share'!O15,0) -> 0 | H40: =SUM(E40:G40) -> 0
A41: 12. | B41: Total (sum of lines 8 - 13) | E41: =SUM(E37:E40) -> 0 | F41: =SUM(F37:F40) -> 0 | G41: =SUM(G37:G40) -> 0 | H41: =SUM(I37:I40) -> 0
A42: Section D - Forecasted Cash Needs
E43: Total for 1st Year | F43: 1st Quarter | G43: 2nd Quarter | H43: 3rd Quarter | I43: 4th quarter
A44: 13. | B44: Federal | E44: =F8 -> 0 | K44: Please populate with forecasted cash flow for the first year. This total should match total budget for the first year.
A45: 14. | B45: Non-Federal | E45: =G8 -> 0
A46: 15. | B46: Total (sum of lines 13 and 14) | E46: =SUM(E44:E45) -> 0 | F46: =SUM(F44:F45) -> 0 | G46: =SUM(G44:G45) -> 0 | H46: =SUM(H44:H45) -> 0 | I46: =SUM(I44:I45) -> 0 | K46: =IF(SUM(F46:I46)=E46,"Correct","Review") -> Correct
A47: Section E - Budget Estimates of Federal Funds Needed for Balance of the Project
A48: (a) Grant Program | E48: Future Funding Periods (Years)
E49: (b) First | F49: (c) Second | G49: (d) Third | H49: (e) Fourth
A50: 16. | B50: ARPA-E | E50: =F8 -> 0 | F50: =F9 -> 0 | G50: =F10 -> 0 | H50: =F11 -> 0
A51: 17.
A52: 18.
A53: 19.
A54: 20. | B54: Total (sum of lines 16-19) | E54: =SUM(E50:E53) -> 0 | F54: =SUM(F50:F53) -> 0 | G54: =SUM(G50:G53) -> 0 | H54: =SUM(H50:H53) -> 0
A55: Section F - Other Budget Information
A56: 21. Direct Charges | C56: ='Instructions and Summary'!F24-'Instructions and Summary'!F23 -> 0 | E56: 22. Indirect Charges | F56: ='Instructions and Summary'!F23 -> 0
A58: 23. Remarks
I60: SF-424A (Rev. 4-92)
A61: Previous Edition Usable | I61: Prescribed by OMB Circular A-102
C62: Authorized for Local Reproduction

Sheet a. Personnel
A1: Budget Justification for SF 424A Budget | D1: Award Recipient: | F1: ='Instructions and Summary'!B4 -> 0 | L1: ='Instructions and Summary'!G4 -> 0 | O1: ='Instructions and Summary'!H1 -> 06/21/18 V 6.18
A2: a. Personnel
A3: PLEASE READ!!! List costs solely for employees of the entity completing this form (award recipient or sub-recipient). All other personnel costs (of subrecipients or other contractual efforts of the entity preparing this) must be included under f., Contractual. This includes all consultants and FFRDCs. Identify positions to be supported. Key personnel should be identified by title. All other personnel should be identified either by title or a group category. State the amounts of time (e.g., hours or % of time) to be expended, the composite base pay rate, total direct personnel compensation and identify the rate basis (e.g., actual salary, labor distribution report, technical estimate, state civil service rates, etc.).
A6: Task # and Title | B6: Position Title | C6: Phase I (12 Months) | F6: Phase II-Year 1 (12 Months) | I6: Phase II-Year 2 (12 Months) | L6: Phase IIS (12 Months) | O6: Total Hours | P6: Total Dollars | Q6: Rate Basis
C7: Time (Hours) | D7: Pay Rate ($/Hr) | E7: Total Budget Phase I | F7: Time (Hours) | G7: Pay Rate ($/Hr) | H7: Total Phase II - Year 1 | I7: Time (Hours) | J7: Pay Rate ($/Hr) | K7: Total Phase II - Year 2 | L7: Time (Hours) | M7: Pay Rate ($/Hr) | N7: Total Budget Phase IIS (12 Months)
A8: 1. Generation 2A Receiver Design | C8: =SUM(C9:C11) -> 7960 | E8: =SUM(E9:E11) -> 372400 | F8: =SUM(F9:F11) -> 600 | H8: =SUM(H9:H11) -> 26000 | I8: =SUM(I9:I11) -> 800 | K8: =SUM(K9:K11) -> 34000 | L8: =SUM(L9:L11) -> 300 | N8: =SUM(N9:N11) -> 13000 | O8: =C8+F8+I8+L8 -> 9660 | P8: =E8+H8+K8+N8 -> 445400 | Q8: Actual Salary
A9: EXAMPLE ONLY!!! | B9: Sr. Engineer | C9: 2000 | D9: 85 | E9: =C9*D9 -> 170000 | F9: 200 | G9: 50 | H9: =F9*G9 -> 10000 | I9: 200 | J9: 50 | K9: =I9*J9 -> 10000 | L9: 100 | M9: 50 | N9: =L9*M9 -> 5000 | O9: =C9+F9+I9+L9 -> 2500 | P9: =E9+H9+K9+N9 -> 195000 | Q9: Actual Salary
B10: Electrical engineers (2) | C10: 4160 | D10: 40 | E10: =C10*D10 -> 166400 | F10: 400 | G10: 40 | H10: =F10*G10 -> 16000 | I10: 600 | J10: 40 | K10: =I10*J10 -> 24000 | L10: 200 | M10: 40 | N10: =L10*M10 -> 8000 | O10: 5360 | P10: 214400 | Q10: Actual Salary
B11: Technician | C11: 1800 | D11: 20 | E11: =C11*D11 -> 36000 | F11: 0 | G11: 0 | H11: =F11*G11 -> 0 | I11: 0 | J11: 0 | K11: =I11*J11 -> 0 | L11: 0 | M11: 0 | N11: =L11*M11 -> 0 | O11: 1800 | P11: 36000 | Q11: Actual Salary
A12: 1. (Task 1 Title) | C12: =SUM(C13:C31) -> 0 | E12: =SUM(E13:E31) -> 0 | F12: =SUM(F13:F31) -> 0 | H12: =SUM(H13:H31) -> 0 | I12: =SUM(I13:I31) -> 0 | K12: =SUM(K13:K31) -> 0 | L12: =SUM(L13:L31) -> 0 | N12: =SUM(N13:N31) -> 0 | O12: =C12+F12+I12+L12 -> 0 | P12: =E12+H12+K12+N12 -> 0
E13: =C13*D13 -> 0 | H13: =F13*G13 -> 0 | K13: =I13*J13 -> 0 | N13: =L13*M13 -> 0 | O13: =C13+F13+I13+L13 -> 0 | P13: =E13+H13+K13+N13 -> 0
E14: =C14*D14 -> 0 | H14: =F14*G14 -> 0 | K14: =I14*J14 -> 0 | N14: =L14*M14 -> 0 | O14: 0 | P14: 0
E15: 0 | H15: 0 | K15: 0 | N15: 0 | O15: 0 | P15: 0
E16: 0 | H16: 0 | K16: 0 | N16: 0 | O16: 0 | P16: 0
E17: 0 | H17: 0 | K17: 0 | N17: 0 | O17: 0 | P17: 0
E18: 0 | H18: 0 | K18: 0 | N18: 0 | O18: 0 | P18: 0
E19: 0 | H19: 0 | K19: 0 | N19: 0 | O19: 0 | P19: 0
E20: 0 | H20: 0 | K20: 0 | N20: 0 | O20: 0 | P20: 0
E21: 0 | H21: 0 | K21: 0 | N21: 0 | O21: 0 | P21: 0
E22: 0 | H22: 0 | K22: 0 | N22: 0 | O22: 0 | P22: 0
E23: 0 | H23: 0 | K23: 0 | N23: 0 | O23: 0 | P23: 0
E24: 0 | H24: 0 | K24: 0 | N24: 0 | O24: 0 | P24: 0
E25: 0 | H25: 0 | K25: 0 | N25: 0 | O25: 0 | P25: 0
E26: 0 | H26: 0 | K26: 0 | N26: 0 | O26: 0 | P26: 0
E27: 0 | H27: 0 | K27: 0 | N27: 0 | O27: 0 | P27: 0
E28: 0 | H28: 0 | K28: 0 | N28: 0 | O28: 0 | P28: 0
E29: 0 | H29: 0 | K29: 0 | N29: 0 | O29: 0 | P29: 0
E30: 0 | H30: 0 | K30: 0 | N30: 0 | O30: =C30+F30+I30+L30 -> 0 | P30: 0
E31: 0 | H31: 0 | K31: 0 | N31: 0 | O31: =C31+F31+I31+L31 -> 0 | P31: =E31+H31+K31+N31 -> 0
A32: 2. (Task 2 Title) | C32: =SUM(C33:C52) -> 0 | E32: =SUM(E33:E52) -> 0 | F32: =SUM(F33:F52) -> 0 | H32: =SUM(H33:H52) -> 0 | I32: =SUM(I33:I52) -> 0 | K32: =SUM(K33:K52) -> 0 | L32: =SUM(L33:L52) -> 0 | N32: =SUM(N33:N52) -> 0 | O32: =C32+F32+I32+L32 -> 0 | P32: =E32+H32+K32+N32 -> 0
E33: 0 | H33: 0 | K33: 0 | N33: =L33*M33 -> 0 | O33: =C33+F33+I33+L33 -> 0 | P33: =E33+H33+K33+N33 -> 0
E34: 0 | H34: 0 | K34: 0 | N34: 0 | O34: 0 | P34: 0
E35: 0 | H35: 0 | K35: 0 | N35: 0 | O35: 0 | P35: 0
E36: 0 | H36: 0 | K36: 0 | N36: 0 | O36: 0 | P36: 0
E37: 0 | H37: 0 | K37: 0 | N37: 0 | O37: 0 | P37: 0
E38: 0 | H38: 0 | K38: 0 | N38: 0 | O38: 0 | P38: 0
E39: 0 | H39: 0 | K39: 0 | N39: 0 | O39: 0 | P39: 0
E40: 0 | H40: 0 | K40: 0 | N40: 0 | O40: 0 | P40: 0
E41: 0 | H41: 0 | K41: 0 | N41: 0 | O41: 0 | P41: 0
E42: 0 | H42: 0 | K42: 0 | N42: 0 | O42: 0 | P42: 0
E43: 0 | H43: 0 | K43: 0 | N43: 0 | O43: 0 | P43: 0
E44: 0 | H44: 0 | K44: 0 | N44: 0 | O44: 0 | P44: 0
E45: 0 | H45: 0 | K45: 0 | N45: 0 | O45: 0 | P45: 0
E46: 0 | H46: 0 | K46: 0 | N46: 0 | O46: 0 | P46: 0
E47: 0 | H47: 0 | K47: 0 | N47: 0 | O47: 0 | P47: 0
E48: 0 | H48: 0 | K48: 0 | N48: 0 | O48: 0 | P48: 0
E49: 0 | H49: 0 | K49: 0 | N49: 0 | O49: 0 | P49: 0
E50: 0 | H50: 0 | K50: 0 | N50: 0 | O50: 0 | P50: 0
E51: 0 | H51: 0 | K51: 0 | N51: 0 | O51: 0 | P51: 0
E52: 0 | H52: 0 | K52: 0 | N52: 0 | O52: =C52+F52+I52+L52 -> 0 | P52: =E52+H52+K52+N52 -> 0
A53: 3. (Task 3 Title) | C53: =SUM(C54:C73) -> 0 | E53: =SUM(E54:E73) -> 0 | F53: =SUM(F54:F73) -> 0 | H53: =SUM(H54:H73) -> 0 | I53: =SUM(I54:I73) -> 0 | K53: =SUM(K54:K73) -> 0 | L53: =SUM(L54:L73) -> 0 | N53: =SUM(N54:N73) -> 0 | O53: =C53+F53+I53+L53 -> 0 | P53: =E53+H53+K53+N53 -> 0
E54: 0 | H54: 0 | K54: 0 | N54: =L54*M54 -> 0 | O54: =C54+F54+I54+L54 -> 0 | P54: =E54+H54+K54+N54 -> 0
E55: 0 | H55: 0 | K55: 0 | N55: 0 | O55: 0 | P55: 0
E56: 0 | H56: 0 | K56: 0 | N56: 0 | O56: 0 | P56: 0
E57: 0 | H57: 0 | K57: 0 | N57: 0 | O57: 0 | P57: 0
E58: 0 | H58: 0 | K58: 0 | N58: 0 | O58: 0 | P58: 0
E59: 0 | H59: 0 | K59: 0 | N59: 0 | O59: 0 | P59: 0
E60: 0 | H60: 0 | K60: 0 | N60: 0 | O60: 0 | P60: 0
E61: 0 | H61: 0 | K61: 0 | N61: 0 | O61: 0 | P61: 0
E62: 0 | H62: 0 | K62: 0 | N62: 0 | O62: 0 | P62: 0
E63: 0 | H63: 0 | K63: 0 | N63: 0 | O63: 0 | P63: 0
E64: 0 | H64: 0 | K64: 0 | N64: 0 | O64: 0 | P64: 0
E65: 0 | H65: 0 | K65: 0 | N65: 0 | O65: 0 | P65: 0
E66: 0 | H66: 0 | K66: 0 | N66: 0 | O66: 0 | P66: 0
E67: 0 | H67: 0 | K67: 0 | N67: 0 | O67: 0 | P67: 0
E68: 0 | H68: 0 | K68: 0 | N68: 0 | O68: 0 | P68: 0
E69: 0 | H69: 0 | K69: 0 | N69: 0 | O69: 0 | P69: 0
E70: 0 | H70: 0 | K70: 0 | N70: 0 | O70: 0 | P70: 0
E71: 0 | H71: 0 | K71: 0 | N71: 0 | O71: 0 | P71: 0
E72: 0 | H72: 0 | K72: 0 | N72: 0 | O72: 0 | P72: 0
E73: 0 | H73: 0 | K73: 0 | N73: 0 | O73: =C73+F73+I73+L73 -> 0 | P73: =E73+H73+K73+N73 -> 0
A74: 4. (Task 4 Title) | C74: =SUM(C75:C95) -> 0 | E74: =SUM(E75:E95) -> 0 | F74: =SUM(F75:F95) -> 0 | H74: =SUM(H75:H95) -> 0 | I74: =SUM(I75:I95) -> 0 | K74: =SUM(K75:K95) -> 0 | L74: =SUM(L75:L95) -> 0 | N74: =SUM(N75:N95) -> 0 | O74: =C74+F74+I74+L74 -> 0 | P74: =E74+H74+K74+N74 -> 0
E75: =C75*D75 -> 0 | H75: =F75*G75 -> 0 | K75: =I75*J75 -> 0 | N75: =L75*M75 -> 0 | O75: =C75+F75+I75+L75 -> 0 | P75: =E75+H75+K75+N75 -> 0
E76: =C76*D76 -> 0 | H76: =F76*G76 -> 0 | K76: =I76*J76 -> 0 | N76: =L76*M76 -> 0 | O76: 0 | P76: 0
E77: 0 | H77: 0 | K77: 0 | N77: 0 | O77: 0 | P77: 0
E78: 0 | H78: 0 | K78: 0 | N78: 0 | O78: 0 | P78: 0
E79: 0 | H79: 0 | K79: 0 | N79: 0 | O79: 0 | P79: 0
E80: 0 | H80: 0 | K80: 0 | N80: 0 | O80: 0 | P80: 0
E81: 0 | H81: 0 | K81: 0 | N81: 0 | O81: 0 | P81: 0
E82: 0 | H82: 0 | K82: 0 | N82: 0 | O82: 0 | P82: 0
E83: 0 | H83: 0 | K83: 0 | N83: 0 | O83: 0 | P83: 0
E84: 0 | H84: 0 | K84: 0 | N84: 0 | O84: 0 | P84: 0
E85: 0 | H85: 0 | K85: 0 | N85: 0 | O85: 0 | P85: 0
E86: 0 | H86: 0 | K86: 0 | N86: 0 | O86: 0 | P86: 0
E87: 0 | H87: 0 | K87: 0 | N87: 0 | O87: 0 | P87: 0
E88: 0 | H88: 0 | K88: 0 | N88: 0 | O88: 0 | P88: 0
E89: 0 | H89: 0 | K89: 0 | N89: 0 | O89: 0 | P89: 0
E90: 0 | H90: 0 | K90: 0 | N90: 0 | O90: 0 | P90: 0
E91: 0 | H91: 0 | K91: 0 | N91: 0 | O91: 0 | P91: 0
E92: 0 | H92: 0 | K92: 0 | N92: 0 | O92: 0 | P92: 0
E93: 0 | H93: 0 | K93: 0 | N93: 0 | O93: 0 | P93: 0
E94: 0 | H94: 0 | K94: 0 | N94: 0 | O94: 0 | P94: 0
E95: 0 | H95: 0 | K95: 0 | N95: 0 | O95: =C95+F95+I95+L95 -> 0 | P95: =E95+H95+K95+N95 -> 0
A96: 5. (Task 5 Title) | C96: =SUM(C97:C118) -> 0 | E96: =SUM(E97:E118) -> 0 | F96: =SUM(F97:F118) -> 0 | H96: =SUM(H97:H118) -> 0 | I96: =SUM(I97:I118) -> 0 | K96: =SUM(K97:K118) -> 0 | L96: =SUM(L97:L118) -> 0 | N96: =SUM(N97:N118) -> 0 | O96: =C96+F96+I96+L96 -> 0 | P96: =E96+H96+K96+N96 -> 0
E97: =C97*D97 -> 0 | H97: =F97*G97 -> 0 | K97: =I97*J97 -> 0 | N97: =L97*M97 -> 0 | O97: =C97+F97+I97+L97 -> 0 | P97: =E97+H97+K97+N97 -> 0
E98: =C98*D98 -> 0 | H98: =F98*G98 -> 0 | K98: =I98*J98 -> 0 | N98: =L98*M98 -> 0 | O98: 0 | P98: 0
E99: 0 | H99: 0 | K99: 0 | N99: 0 | O99: 0 | P99: 0
E100: 0 | H100: 0 | K100: 0 | N100: 0 | O100: 0 | P100: 0
E101: 0 | H101: 0 | K101: 0 | N101: 0 | O101: 0 | P101: 0
E102: 0 | H102: 0 | K102: 0 | N102: 0 | O102: 0 | P102: 0
E103: 0 | H103: 0 | K103: 0 | N103: 0 | O103: 0 | P103: 0
E104: 0 | H104: 0 | K104: 0 | N104: 0 | O104: 0 | P104: 0
E105: 0 | H105: 0 | K105: 0 | N105: 0 | O105: 0 | P105: 0
E106: 0 | H106: 0 | K106: 0 | N106: 0 | O106: 0 | P106: 0
E107: 0 | H107: 0 | K107: 0 | N107: 0 | O107: 0 | P107: 0
E108: 0 | H108: 0 | K108: 0 | N108: 0 | O108: 0 | P108: 0
E109: 0 | H109: 0 | K109: 0 | N109: 0 | O109: 0 | P109: 0
E110: 0 | H110: 0 | K110: 0 | N110: 0 | O110: 0 | P110: 0
E111: 0 | H111: 0 | K111: 0 | N111: 0 | O111: 0 | P111: 0
E112: 0 | H112: 0 | K112: 0 | N112: 0 | O112: 0 | P112: 0
E113: 0 | H113: 0 | K113: 0 | N113: 0 | O113: 0 | P113: 0
E114: 0 | H114: 0 | K114: 0 | N114: 0 | O114: 0 | P114: 0
E115: 0 | H115: 0 | K115: 0 | N115: 0 | O115: 0 | P115: 0
E116: 0 | H116: 0 | K116: 0 | N116: 0 | O116: 0 | P116: 0
E117: 0 | H117: 0 | K117: 0 | N117: 0 | O117: 0 | P117: 0
E118: 0 | H118: 0 | K118: 0 | N118: 0 | O118: =C118+F118+I118+L118 -> 0 | P118: =E118+H118+K118+N118 -> 0
A119: 6. (Task 6 Title) | C119: =SUM(C120:C140) -> 0 | E119: =SUM(E120:E140) -> 0 | F119: =SUM(F120:F140) -> 0 | H119: =SUM(H120:H140) -> 0 | I119: =SUM(I120:I140) -> 0 | K119: =SUM(K120:K140) -> 0 | L119: =SUM(L120:L140) -> 0 | N119: =SUM(N120:N140) -> 0 | O119: =C119+F119+I119+L119 -> 0 | P119: =E119+H119+K119+N119 -> 0
E120: =C120*D120 -> 0 | H120: =F120*G120 -> 0 | K120: =I120*J120 -> 0 | N120: =L120*M120 -> 0 | O120: =C120+F120+I120+L120 -> 0 | P120: =E120+H120+K120+N120 -> 0
E121: =C121*D121 -> 0 | H121: =F121*G121 -> 0 | K121: =I121*J121 -> 0 | N121: =L121*M121 -> 0 | O121: 0 | P121: 0
E122: 0 | H122: 0 | K122: 0 | N122: 0 | O122: 0 | P122: 0
E123: 0 | H123: 0 | K123: 0 | N123: 0 | O123: 0 | P123: 0
E124: 0 | H124: 0 | K124: 0 | N124: 0 | O124: 0 | P124: 0
E125: 0 | H125: 0 | K125: 0 | N125: 0 | O125: 0 | P125: 0
E126: 0 | H126: 0 | K126: 0 | N126: 0 | O126: 0 | P126: 0
E127: 0 | H127: 0 | K127: 0 | N127: 0 | O127: 0 | P127: 0
E128: 0 | H128: 0 | K128: 0 | N128: 0 | O128: 0 | P128: 0
E129: 0 | H129: 0 | K129: 0 | N129: 0 | O129: 0 | P129: 0
E130: 0 | H130: 0 | K130: 0 | N130: 0 | O130: 0 | P130: 0
E131: 0 | H131: 0 | K131: 0 | N131: 0 | O131: 0 | P131: 0
E132: 0 | H132: 0 | K132: 0 | N132: 0 | O132: 0 | P132: 0
E133: 0 | H133: 0 | K133: 0 | N133: 0 | O133: 0 | P133: 0
E134: 0 | H134: 0 | K134: 0 | N134: 0 | O134: 0 | P134: 0
E135: 0 | H135: 0 | K135: 0 | N135: 0 | O135: 0 | P135: 0
E136: 0 | H136: 0 | K136: 0 | N136: 0 | O136: 0 | P136: 0
E137: 0 | H137: 0 | K137: 0 | N137: 0 | O137: 0 | P137: 0
E138: 0 | H138: 0 | K138: 0 | N138: 0 | O138: 0 | P138: 0
E139: 0 | H139: 0 | K139: 0 | N139: 0 | O139: 0 | P139: 0
E140: 0 | H140: 0 | K140: 0 | N140: 0 | O140: =C140+F140+I140+L140 -> 0 | P140: =E140+H140+K140+N140 -> 0
A141: 7. (Task 7 Title) | C141: =SUM(C142:C161) -> 0 | E141: =SUM(E142:E161) -> 0 | F141: =SUM(F142:F161) -> 0 | H141: =SUM(H142:H161) -> 0 | I141: =SUM(I142:I161) -> 0 | K141: =SUM(K142:K161) -> 0 | L141: =SUM(L142:L161) -> 0 | N141: =SUM(N142:N161) -> 0 | O141: =C141+F141+I141+L141 -> 0 | P141: =E141+H141+K141+N141 -> 0
E142: =C142*D142 -> 0 | H142: =F142*G142 -> 0 | K142: =I142*J142 -> 0 | N142: =L142*M142 -> 0 | O142: =C142+F142+I142+L142 -> 0 | P142: =E142+H142+K142+N142+#REF! -> 
E143: =C143*D143 -> 0 | H143: =F143*G143 -> 0 | K143: =I143*J143 -> 0 | N143: =L143*M143 -> 0 | O143: 0 | P143: =E143+H143+K143+N143+#REF! -> 
E144: 0 | H144: 0 | K144: 0 | N144: 0 | O144: 0 | P144: =E144+H144+K144+N144+#REF! -> 
E145: 0 | H145: 0 | K145: 0 | N145: 0 | O145: 0 | P145: =E145+H145+K145+N145+#REF! -> 
E146: 0 | H146: 0 | K146: 0 | N146: 0 | O146: 0 | P146: =E146+H146+K146+N146+#REF! -> 
E147: 0 | H147: 0 | K147: 0 | N147: 0 | O147: 0 | P147: =E147+H147+K147+N147+#REF! -> 
E148: 0 | H148: 0 | K148: 0 | N148: 0 | O148: 0 | P148: =E148+H148+K148+N148+#REF! -> 
E149: 0 | H149: 0 | K149: 0 | N149: 0 | O149: 0 | P149: =E149+H149+K149+N149+#REF! -> 
E150: 0 | H150: 0 | K150: 0 | N150: 0 | O150: 0 | P150: =E150+H150+K150+N150+#REF! -> 
E151: 0 | H151: 0 | K151: 0 | N151: 0 | O151: 0 | P151: =E151+H151+K151+N151+#REF! -> 
E152: 0 | H152: 0 | K152: 0 | N152: 0 | O152: 0 | P152: =E152+H152+K152+N152+#REF! -> 
E153: 0 | H153: 0 | K153: 0 | N153: 0 | O153: 0 | P153: =E153+H153+K153+N153+#REF! -> 
E154: 0 | H154: 0 | K154: 0 | N154: 0 | O154: 0 | P154: =E154+H154+K154+N154+#REF! -> 
E155: 0 | H155: 0 | K155: 0 | N155: 0 | O155: 0 | P155: =E155+H155+K155+N155+#REF! -> 
E156: 0 | H156: 0 | K156: 0 | N156: 0 | O156: 0 | P156: =E156+H156+K156+N156+#REF! -> 
E157: 0 | H157: 0 | K157: 0 | N157: 0 | O157: 0 | P157: =E157+H157+K157+N157+#REF! -> 
E158: 0 | H158: 0 | K158: 0 | N158: 0 | O158: 0 | P158: =E158+H158+K158+N158+#REF! -> 
E159: 0 | H159: 0 | K159: 0 | N159: 0 | O159: 0 | P159: =E159+H159+K159+N159+#REF! -> 
E160: 0 | H160: 0 | K160: 0 | N160: 0 | O160: 0 | P160: =E160+H160+K160+N160+#REF! -> 
E161: 0 | H161: 0 | K161: 0 | N161: 0 | O161: =C161+F161+I161+L161 -> 0 | P161: =E161+H161+K161+N161+#REF! -> 
A162: 8. (Task 8 Title) | C162: =SUM(C163:C181) -> 0 | E162: =SUM(E163:E181) -> 0 | F162: =SUM(F163:F181) -> 0 | H162: =SUM(H163:H181) -> 0 | I162: =SUM(I163:I181) -> 0 | K162: =SUM(K163:K181) -> 0 | L162: =SUM(L163:L181) -> 0 | N162: =SUM(N163:N181) -> 0 | O162: =C162+F162+I162+L162 -> 0 | P162: =E162+H162+K162+N162+#REF! -> 
E163: =C163*D163 -> 0 | H163: =F163*G163 -> 0 | K163: =I163*J163 -> 0 | N163: =L163*M163 -> 0 | O163: =C163+F163+I163+L163 -> 0 | P163: =E163+H163+K163+N163+#REF! -> 
E164: =C164*D164 -> 0 | H164: =F164*G164 -> 0 | K164: =I164*J164 -> 0 | N164: =L164*M164 -> 0 | O164: 0 | P164: =E164+H164+K164+N164+#REF! -> 
E165: 0 | H165: 0 | K165: 0 | N165: 0 | O165: 0 | P165: =E165+H165+K165+N165+#REF! -> 
E166: 0 | H166: 0 | K166: 0 | N166: 0 | O166: 0 | P166: =E166+H166+K166+N166+#REF! -> 
E167: 0 | H167: 0 | K167: 0 | N167: 0 | O167: 0 | P167: =E167+H167+K167+N167+#REF! -> 
E168: 0 | H168: 0 | K168: 0 | N168: 0 | O168: 0 | P168: =E168+H168+K168+N168+#REF! -> 
E169: 0 | H169: 0 | K169: 0 | N169: 0 | O169: 0 | P169: =E169+H169+K169+N169+#REF! -> 
E170: 0 | H170: 0 | K170: 0 | N170: 0 | O170: 0 | P170: =E170+H170+K170+N170+#REF! -> 
E171: 0 | H171: 0 | K171: 0 | N171: 0 | O171: 0 | P171: =E171+H171+K171+N171+#REF! -> 
E172: 0 | H172: 0 | K172: 0 | N172: 0 | O172: 0 | P172: =E172+H172+K172+N172+#REF! -> 
E173: 0 | H173: 0 | K173: 0 | N173: 0 | O173: 0 | P173: =E173+H173+K173+N173+#REF! -> 
E174: 0 | H174: 0 | K174: 0 | N174: 0 | O174: 0 | P174: =E174+H174+K174+N174+#REF! -> 
E175: 0 | H175: 0 | K175: 0 | N175: 0 | O175: 0 | P175: =E175+H175+K175+N175+#REF! -> 
E176: 0 | H176: 0 | K176: 0 | N176: 0 | O176: 0 | P176: =E176+H176+K176+N176+#REF! -> 
E177: 0 | H177: 0 | K177: 0 | N177: 0 | O177: 0 | P177: =E177+H177+K177+N177+#REF! -> 
E178: 0 | H178: 0 | K178: 0 | N178: 0 | O178: 0 | P178: =E178+H178+K178+N178+#REF! -> 
E179: 0 | H179: 0 | K179: 0 | N179: 0 | O179: 0 | P179: =E179+H179+K179+N179+#REF! -> 
E180: 0 | H180: 0 | K180: 0 | N180: 0 | O180: 0 | P180: =E180+H180+K180+N180 -> 0
E181: 0 | H181: 0 | K181: 0 | N181: 0 | O181: =C181+F181+I181+L181 -> 0 | P181: =E181+H181+K181+N181 -> 0
A182: Total Personnel Costs | C182: =C12+C32+C53+C74+C96+C119+C141+C162 -> 0 | E182: =E12+E32+E53+E74+E96+E119+E141+E162 -> 0 | F182: =F12+F32+F53+F74+F96+F119+F141+F162 -> 0 | H182: =H12+H32+H53+H74+H96+H119+H141+H162 -> 0 | I182: =I12+I32+I53+I74+I96+I119+I141+I162 -> 0 | K182: =K12+K32+K53+K74+K96+K119+K141+K162 -> 0 | L182: =L12+L32+L53+L74+L96+L119+L141+L162 -> 0 | N182: =N12+N32+N53+N74+N96+N119+N141+N162 -> 0 | O182: =C182+F182+I182+L182 -> 0 | P182: =E182+H182+K182+N182 -> 0
A184: Additional Explanations/Comments (as necessary):

Sheet b. Fringe Benefits
A1: Budget Justification for SF 424A Budget | E1: Award Recipient: | F1: ='Instructions and Summary'!B4 -> 0 | H1: ='Instructions and Summary'!H1 -> 06/21/18 V 6.18
A2: b. Fringe Benefits
A3: Rate Type: | D3: Phase I (12 Months) | E3: Phase II-Year 1 (12 Months) | F3: Phase II-Year 2 (12 Months) | G3: Phase IIS (12 Months) | H3: Total
D4: 0 | E4: 0 | F4: 0 | G4: 0
D5: 0 | E5: 0 | F5: 0 | G5: 0
D6: 0 | E6: 0 | F6: 0 | G6: 0
D7: 0 | E7: 0 | F7: 0 | G7: 0
D8: 0 | E8: 0 | F8: 0 | G8: 0
D9: 0 | E9: 0 | F9: 0 | G9: 0
A10: Total fringe requested: | D10: 0 | E10: 0 | F10: 0 | G10: 0 | H10: =SUM(D10:G10) -> 0
A11: =IF(A15=A17,"One box should be checked in the fringe rate agreement section.","") -> One box should be checked in the fringe rate agreement section.
A13: Applicants are required to indicate if they have a Federally approved fringe benefit rate agreement.
A14: If reimbursement for fringe benefits is requested, a Federally approved fringe benefit rate agreement, or a fringe benefit rate proposal is required in accordance with the instructions below. The fringe benefit rate proposal must be accepted by ARPA-E for estimating purposes. Calculate the fringe rate/dollars and enter this information above.
B15: A fringe benefit rate has been negotiated with, or approved by, a Federal government agency. A copy of the latest rate agreement is included with the Full Application (*see information below).
B17: A fringe benefit rate has not been negotiated with, or approved by, a Federal agency (*see information below).
B18: If an Applicant is selected for award negotiations and does not have a Federally approved fringe benefit rate agreement, then the Applicant is required to submit an Indirect Rate Proposal to the Contracting Officer. A template for Indirect Rate Proposals is available at http://arpa-e.energy.gov/FundingAgreements/Overview.aspx. The Applicant must provide this information to the Contracting Officer at ARPA-E-CO@hq.doe.gov within 2 days after the receiving the award notification. In the subject line of the email, please state “Rate Proposal” and include the Applicant’s name, FOA name and number, and application control number. | I18: X
A20: *IMPORTANT: In the space provided below (or as an attachment) provide a complete explanation and the full calculations used to derive the total fringe costs. If the total fringe costs are a cumulative amount of more than one calculation or rate application, the explanation and calculations should identify all rates used, along with the base they were applied to (and how the base was derived), and a total for each (along with grand total). Do not average the rates and apply them to get one fringe cost percentage. NOTE: You must apply the fringe benefit rate to both the Federal Share and Recipient Cost Share.
A24: Explanations/Comments/Calculations/Formula:

Sheet c. Travel
A1: Budget Justification for SF 424A Budget | C1: Award Recipient: | E1: ='Instructions and Summary'!B4 -> 0 | H1: ='Instructions and Summary'!H1 -> 06/21/18 V 6.18
A2: c. Travel
A3: PLEASE READ!!! Provide travel detail as requested below, identifying total Foreign and Domestic Travel as separate items. "Purpose of travel" are items such as professional conference, DOE sponsored meeting, project management meeting, etc. The Basis for Estimating Costs are items such as past trips, current quotations, Federal Travel Regulations, etc. Note: Non-travel related expenses for the ARPA-E Annual Energy Summit must be approved in advance by the Contracting Officer. Applicants must submit requests to the Contracting Officer at ARPA-E-CO@hq.doe.gov at least 30 days in advance of the ARPA-E Annual Summit. In the subject line of the email, please state “Request for Non-Travel Expenses for ARPA-E Energy Innovation Summit” and include the Applicant’s name, FOA name and number, and application control number. NOTE: All projects should budget for one visit with ARPA-E Program Directors in Washington, and one ARPA-E designated conference per year during Phase II and Phase IIS. This travel is not required during Phase I and is not required of subrecipients.
A5: Purpose of travel | B5: No. of Travelers | C5: Depart From | D5: Destination | E5: No. of Days | F5: Cost per Traveler | G5: Cost per Trip | H5: Basis for Estimating Costs
A6: EXAMPLE ONLY!!! Visit to PV cell mfr. to set up vendor agreement | B6: 2 | E6: 2 | F6: 650 | G6: =F6*B6 -> 1300 | H6: Internet prices
A7: Phase I (12 Months)
A8: Domestic Travel
G9: =F9*B9 -> 0
G10: 0
G11: 0
G12: 0
G13: 0
G14: 0
G15: 0
G16: 0
G17: 0
G18: 0
G19: 0
G20: 0
G21: 0
G22: 0
G23: 0
G24: 0
G25: 0
G26: 0
G27: 0
A28: Domestic Travel Subtotal | G28: =SUM(G9:G27) -> 0
A29: International Travel
G30: =F30*B30 -> 0
G31: =F31*B31 -> 0
G32: 0
G33: 0
G34: 0
G35: 0
G36: 0
G37: 0
G38: 0
G39: 0
G40: 0
G41: 0
G42: 0
G43: 0
G44: =F44*B44 -> 0
G45: =F45*B45 -> 0
G46: =F46*B46 -> 0
G47: =F47*B47 -> 0
A48: International Travel Subtotal | G48: =SUM(G30:G47) -> 0
A49: Phase I Total | G49: =G28+G48 -> 0
A51: Phase II-Year 1 (12 Months)
A52: Domestic Travel
G53: =F53*B53 -> 0
G54: 0
G55: 0
G56: 0
G57: 0
G58: 0
G59: 0
G60: 0
G61: 0
G62: 0
G63: 0
G64: 0
G65: 0
G66: 0
G67: 0
G68: 0
G69: 0
G70: 0
G71: 0
G72: 0
G73: 0
G74: 0
A75: Domestic Travel Subtotal | G75: =SUM(G53:G74) -> 0
A76: International Travel
G77: =F77*B77 -> 0
G78: =F78*B78 -> 0
G79: 0
G80: 0
G81: 0
G82: 0
G83: 0
G84: 0
G85: 0
G86: 0
G87: 0
G88: 0
G89: 0
G90: 0
G91: =F91*B91 -> 0
G92: 0
G93: =F93*B93 -> 0
G94: =F94*B94 -> 0
A95: International Travel Subtotal | G95: =SUM(G77:G94) -> 0
A96: Phase II-Year 1 Total | G96: =G75+G95 -> 0
A98: Phase II- Year 2 (12 Months)
A99: Domestic Travel
G100: =F100*B100 -> 0
G101: 0
G102: 0
G103: 0
G104: 0
G105: 0
G106: 0
G107: 0
G108: 0
G109: 0
G110: 0
G111: 0
G112: 0
G113: 0
G114: 0
G115: 0
G116: 0
G117: 0
G118: 0
G119: 0
G120: 0
G121: 0
A122: Domestic Travel Subtotal | G122: =SUM(G100:G121) -> 0
A123: International Travel
G124: =F124*B124 -> 0
G125: =F125*B125 -> 0
G126: 0
G127: 0
G128: 0
G129: 0
G130: 0
G131: 0
G132: 0
G133: 0
G134: 0
G135: 0
G136: 0
G137: 0
G138: 0
G139: 0
G140: =F140*B140 -> 0
G141: 0
G142: =F142*B142 -> 0
G143: =F143*B143 -> 0
G144: =F144*B144 -> 0
A145: International Travel Subtotal | G145: =SUM(G124:G144) -> 0
A146: Phase II-Year 2 Total | G146: =G122+G145 -> 0
A148: Phase IIS (12 Months)
A149: Domestic Travel
G150: =F150*B150 -> 0
G151: 0
G152: 0
G153: 0
G154: 0
G155: 0
G156: 0
G157: 0
G158: 0
G159: 0
G160: 0
G161: 0
G162: 0
G163: 0
G164: 0
G165: 0
G166: 0
G167: 0
G168: 0
G169: 0
G170: 0
G171: 0
A172: Domestic Travel Subtotal | G172: =SUM(G150:G171) -> 0
A173: International Travel
G174: =F174*B174 -> 0
G175: =F175*B175 -> 0
G176: 0
G177: 0
G178: 0
G179: 0
G180: 0
G181: 0
G182: 0
G183: 0
G184: 0
G185: 0
G186: 0
G187: 0
G188: 0
G189: 0
G190: 0
G191: 0
G192: =F192*B192 -> 0
G193: =F193*B193 -> 0
G194: =F194*B194 -> 0
A195: International Travel Subtotal | G195: =SUM(G174:G194) -> 0
A196: Phase IIS Total | G196: =G172+G195 -> 0
A198: PROJECT TOTAL | G198: =G49+G96+G146+G196 -> 0
A200: Additional Explanations/Comments (as necessary):
A201: NOTE: No visit with ARPA-E Program Director in Washington, DC is to be budgeted for Phase I travel costs.

Sheet d. Equipment
A1: Budget Justification for SF 424A Budget | C1: Award Recipient: | D1: ='Instructions and Summary'!B4 -> 0 | F1: ='Instructions and Summary'!H1 -> 06/21/18 V 6.18
A2: d. Equipment
A3: PLEASE READ!!! "Equipment" is generally defined as an item with an acquisition cost greater than $5,000 and a useful life expectancy of more than one year. Further definitions can be found at 2 C.F.R. 200. List all proposed equipment below, providing a basis of cost such as vendor quotes, catalog prices, prior invoices, etc., and briefly justify its need as it applies to the Statement of Project Objectives and accompanying Technical Milestones and Deliverables. If it is existing equipment, and the value of its contribution to the project budget is being shown as cost share, provide logical support for the estimated value shown. If it is new equipment which will retain a useful life upon completion of the project, provide logical support for the estimated value shown. For equipment with a unit price of $50,000.00 or greater, also include a copy of the associated vendor quote or catalog price list.
A5: Equipment Item | B5: Qty | C5: Unit Cost | D5: Total Cost | E5: Basis of Cost | F5: Justification of Need
A6: EXAMPLE ONLY!!! Thermal shock chamber | B6: 2 | C6: 20000 | D6: =B6*C6 -> 40000 | E6: Vendor Quote | F6: Reliability testing of PV modules- Task 4.3
A7: Phase I (12 Months)
D8: =B8*C8 -> 0
D9: 0
D10: 0
D11: 0
D12: 0
D13: 0
D14: 0
D15: 0
D16: 0
D17: 0
D18: 0
D19: 0
D20: 0
D21: 0
D22: 0
D23: 0
D24: 0
D25: 0
D26: 0
D27: 0
D28: 0
D29: 0
D30: 0
D31: 0
D32: 0
D33: 0
D34: 0
D35: 0
D36: 0
D37: 0
D38: 0
D39: 0
D40: 0
D41: 0
D42: 0
D43: 0
A44: Phase I Total | D44: =SUM(D8:D43) -> 0
A46: Phase II-Year 1 (12 Months)
D47: =B47*C47 -> 0
D48: =B48*C48 -> 0
D49: 0
D50: 0
D51: 0
D52: 0
D53: 0
D54: 0
D55: 0
D56: 0
D57: 0
D58: 0
D59: 0
D60: 0
D61: 0
D62: 0
D63: 0
D64: 0
D65: 0
D66: 0
D67: 0
D68: 0
D69: 0
D70: 0
D71: 0
D72: 0
D73: 0
D74: 0
D75: 0
D76: 0
D77: 0
D78: 0
D79: 0
D80: 0
D81: 0
D82: 0
D83: 0
D84: 0
D85: 0
D86: 0
D87: 0
D88: 0
D89: 0
D90: 0
D91: 0
D92: 0
D93: 0
D94: 0
A95: Phase II-Year 1 Total | D95: =SUM(D47:D94) -> 0
A97: Phase II-Year 2 (12 Months)
D98: =B98*C98 -> 0
D99: =B99*C99 -> 0
D100: 0
D101: 0
D102: 0
D103: 0
D104: 0
D105: 0
D106: 0
D107: 0
D108: 0
D109: 0
D110: 0
D111: 0
D112: 0
D113: 0
D114: 0
D115: 0
D116: 0
D117: 0
D118: 0
D119: 0
D120: 0
D121: 0
D122: 0
D123: 0
D124: 0
D125: 0
D126: 0
D127: 0
D128: 0
D129: 0
D130: 0
D131: 0
D132: 0
D133: 0
D134: 0
D135: 0
D136: 0
D137: 0
D138: 0
D139: 0
D140: 0
D141: =B141*C141 -> 0
D142: 0
D143: 0
D144: 0
D145: 0
D146: 0
D147: 0
D148: 0
D149: 0
D150: 0
A151: Phase II-Year 2 Total | D151: =SUM(D98:D150) -> 0
A153: Phase IIS (12 Months)
D154: =B154*C154 -> 0
D155: =B155*C155 -> 0
D156: 0
D157: 0
D158: 0
D159: 0
D160: 0
D161: 0
D162: 0
D163: 0
D164: 0
D165: 0
D166: 0
D167: 0
D168: 0
D169: 0
D170: 0
D171: 0
D172: 0
D173: 0
D174: 0
D175: 0
D176: 0
D177: 0
D178: 0
D179: 0
D180: 0
D181: 0
D182: 0
D183: 0
D184: 0
D185: 0
D186: 0
D187: 0
D188: 0
D189: 0
D190: 0
D191: 0
D192: 0
D193: 0
D194: 0
D195: 0
D196: 0
D197: 0
D198: 0
D199: 0
D200: 0
D201: 0
D202: 0
D203: 0
D204: 0
... 5 more rows

Sheet e. Supplies
A1: Budget Justification for SF 424A Budget | C1: Award Recipient: | D1: ='Instructions and Summary'!B4 -> 0 | F1: ='Instructions and Summary'!H1 -> 06/21/18 V 6.18
A2: e. Supplies
A3: PLEASE READ!!! "Supplies" are generally defined as an item with an acquisition cost of $5,000 or less and a useful life expectancy of less than one year. Supplies are generally consumed during the project performance. Further definitions can be found at 2 C.F.R. 200. List all proposed supplies below, providing a bases of cost such as vendor quotes, catalog prices, prior invoices, etc., and briefly justifying the need for the Supplies as they apply to the Statement of Project Objectives and accompanying Technical Milestones and Deliverables. Note that Supply items must be direct costs to the project at this budget category, and not duplicative of supply costs included in the indirect pool that is the basis of the indirect rate applied for this project.
A5: General Category of Supplies | B5: Qty | C5: Unit Cost | D5: Total Cost | E5: Basis of Cost | F5: Justification of Need
A6: EXAMPLE ONLY!!! Wireless DAS components | B6: 10 | C6: 360 | D6: 3600 | E6: Catalog price | F6: For Alpha prototype - Task 2.4
A7: Phase I Year 1 (12 Months)
D8: =B8*C8 -> 0
D9: =B9*C9 -> 0
D10: 0
D11: 0
D12: 0
D13: 0
D14: 0
D15: 0
D16: 0
D17: 0
D18: 0
D19: 0
D20: 0
D21: 0
D22: 0
D23: 0
D24: 0
D25: 0
D26: 0
D27: 0
D28: 0
D29: 0
D30: 0
D31: 0
D32: 0
D33: 0
D34: 0
D35: 0
D36: 0
D37: 0
D38: 0
D39: 0
D40: 0
D41: 0
D42: 0
D43: 0
D44: 0
D45: 0
D46: 0
D47: 0
D48: 0
D49: 0
D50: 0
D51: 0
D52: 0
D53: 0
D54: 0
D55: 0
D56: 0
D57: 0
D58: 0
D59: 0
D60: 0
D61: 0
D62: 0
D63: 0
D64: 0
D65: 0
D66: 0
D67: 0
D68: 0
D69: 0
D70: 0
D71: 0
D72: 0
D73: 0
D74: 0
D75: 0
D76: 0
D77: 0
D78: 0
D79: 0
A80: Year 1 Total | D80: =SUM(D8:D79) -> 0
A82: Phase II Year 1 (12 Months)
D83: =B83*C83 -> 0
D84: =B84*C84 -> 0
D85: 0
D86: 0
D87: 0
D88: 0
D89: 0
D90: 0
D91: 0
D92: 0
D93: 0
D94: 0
D95: 0
D96: 0
D97: 0
D98: 0
D99: 0
D100: 0
D101: 0
D102: 0
D103: 0
D104: 0
D105: 0
D106: 0
D107: 0
D108: 0
D109: 0
D110: 0
D111: 0
D112: 0
D113: 0
D114: 0
D115: 0
D116: 0
D117: 0
D118: 0
D119: 0
D120: 0
D121: 0
D122: 0
D123: 0
D124: 0
D125: 0
D126: 0
D127: 0
D128: 0
D129: 0
D130: 0
D131: 0
D132: 0
D133: 0
D134: 0
D135: 0
D136: 0
D137: 0
D138: 0
D139: 0
D140: 0
D141: 0
D142: 0
D143: 0
D144: 0
D145: 0
D146: 0
D147: 0
D148: 0
D149: 0
D150: =B150*C150 -> 0
D151: 0
A152: Year 2 Total | D152: =SUM(D83:D151) -> 0
A154: Phase II Year 2 (12 months)
D155: =B155*C155 -> 0
D156: =B156*C156 -> 0
D157: =B157*C157 -> 0
D158: 0
D159: 0
D160: 0
D161: 0
D162: 0
D163: 0
D164: 0
D165: 0
D166: 0
D167: 0
D168: 0
D169: 0
D170: 0
D171: 0
D172: 0
D173: 0
D174: 0
D175: 0
D176: 0
D177: 0
D178: 0
D179: 0
D180: 0
D181: 0
D182: 0
D183: 0
D184: 0
D185: 0
D186: 0
D187: 0
D188: 0
D189: 0
D190: 0
D191: 0
D192: 0
D193: 0
D194: 0
D195: 0
D196: 0
D197: 0
D198: 0
D199: 0
D200: 0
D201: 0
D202: 0
D203: 0
... 90 more rows

Sheet f. Contractual
A1: Budget Justification for SF 424A Budget Award Recipient: | C1: ='Instructions and Summary'!B4 -> 0 | G1: ='Instructions and Summary'!H1 -> 06/21/18 V 6.18
A2: f. Contractual
A3: PLEASE READ!!! The entity completing this form must provide all costs related to subrecipients, vendors, contractors, consultants and FFRDC partners in the applicable boxes below. Subrecipients (partners, subawardees): Each Subrecipient incurring greater than or equal to 10% of the Total Project Costs must complete a separate Budget Justification Workbook to justify its proposed budget. The Subrecipients’ SF-424A and Budget Justification Workbooks may be completed by either the Subrecipients themselves or by the preparer of this workbook. The budget totals on the Subrecipients' workbooks must match the Subrecipient entries described below. Subrecipients incurring less than 10% of the Total Project Costs are not required to complete a separate Budget Justification workbook. However, such Subrecipients are required to provide supporting documentation to justify their proposed budgets. At a minimum, the supporting documentation must include a sufficient basis for the estimated costs for ARPA-E evaluation. Please also refer to instructions in tabs b. Fringe Benefits and i. Indirect Costs.
A4: Vendors (includes contractors and consultants): List all vendors, contractors and consultants supplying commercial supplies or services used to support the project. The support to justify vendor costs (in any amount) should provide the purpose for the products or services and a basis of the estimated costs that is considered sufficient for ARPA-E evaluation. Federal Research and Development Centers (FFRDCs): Each FFRDC incurring greater than or equal to 10% of the Total Project Costs must complete a separate SF-424A and separate Budget Justification worksheet to justify its proposed budget. The FFRDC workbooks may be completed by either the Subrecipients themselves or by the preparer of this workbook. The budget totals on the Subrecipient's SF-424A and Budget Justification Workbook must match the Subrecipient entries described below. DOE/NNSA FFRDCs are also required to submit a Field Work Proposal in accordance with the instructions in DOE O 412.1, “Work Authorization System” (http://management.energy.gov/business_doe/business_forms.htm) in the Technical Volume of the Full Application. FFRDCs incurring less than 10% of the Total Project Cost are not required to complete a separate SF-424A and Budget Justification Workbook. However, FFRDCs are required to provide supporting documentation to justify their proposed budgets. At a minimum, the supporting documentation must include a sufficient basis for the estimated costs for ARPA-E evaluation. All DOE/NNSA FFRDCs are also required to submit a Field Work Proposal. Please also refer to instructions in tabs b. Fringe Benefits and i. Indirect Costs.
A6: Sub-Recipient Name/Organization | B6: Purpose/Tasks in Statement of Project Objectives (SOPO) | C6: Phase I Year 1 (12 Months) | D6: Phase II Year 1 (12 Months) | E6: Phase II Year 2 (12 Months) | F6: Phase 2S (12 Months) | G6: Project Total
A7: EXAMPLE ONLY!!! XYZ Corp. | B7: Partner to develop optimal fresnel lens for Gen 2 product - Task 2.4 | C7: 80000 | D7: 64000 | E7: 48000 | F7: 32000 | G7: =SUM(C7:F7) -> 224000 | H7: =IF(G7>100000,"Separate budget forms required for this sub-recipient!", " ") -> Separate budget forms required for this sub-recipient!
G8: 0 | H8: =IF(G8>=100000,"Separate budget forms required for this sub-recipient!", " ") -> 
G9: 0
G10: 0
G11: 0
G12: 0
G13: 0
G14: 0 | H14: =IF(G14>100000,"Separate budget forms required for this sub-recipient!", " ") -> 
G15: 0
G16: 0
G17: 0
G18: 0
G19: 0
G20: 0
A21: Total Sub-Recipient | C21: =SUM(C8:C20) -> 0 | D21: =SUM(D8:D20) -> 0 | E21: =SUM(E8:E20) -> 0 | F21: =SUM(F8:F20) -> 0 | G21: 0
A23: Vendor Name/Organization | B23: Product or Service, Purpose/Need and Basis of Cost (Provide additional support at bottom of page as needed) | C23: Phase I Year 1 (12 Months) | D23: Phase II Year 1 (12 Months) | E23: Phase II Year 2 (12 Months) | F23: Phase 2S (12 Months) | G23: Project Total
A24: EXAMPLE ONLY!!! ABC Corp. | B24: Vendor for developing custom robotics to perform lens inspection, alignment, and placement (Task 4 ). Required for expanding CPV module mfg. capacity. Cost is from competitive quotes. | C24: 32900 | D24: 86500 | G24: =SUM(C24:F24) -> 119400
G25: 0
G26: 0
G27: 0
G28: 0
G29: 0
G30: 0
G31: 0
G32: 0
G33: 0
G34: 0
G35: 0
G36: 0
G37: 0
G38: 0
G39: 0
A40: Total Vendor / Organization | C40: =SUM(C25:C39) -> 0 | D40: =SUM(D25:D39) -> 0 | E40: =SUM(E25:E39) -> 0 | F40: =SUM(F25:F39) -> 0 | G40: 0
A42: FFRDC or GO-GO | B42: Purpose | C42: Phase I Year 1 (12 Months) | D42: Phase II Year 1 (12 Months) | E42: Phase II Year 2 (12 Months) | F42: Phase 2S (12 Months) | G42: Project Total
G43: =SUM(C43:F43) -> 0
G44: 0
G45: 0
G46: 0
G47: 0
G48: 0
G49: 0
G50: 0
G51: 0
A52: Total FFRDC | C52: =SUM(C43:C51) -> 0 | D52: =SUM(D43:D51) -> 0 | E52: =SUM(E43:E51) -> 0 | F52: =SUM(F43:F51) -> 0 | G52: 0
A54: Total Contractual | C54: =C40+C21+C52 -> 0 | D54: =D40+D21+D52 -> 0 | E54: =E40+E21+E52 -> 0 | F54: =F40+F21+F52 -> 0 | G54: =G40+G21+G52 -> 0
A56: Additional Explanations/Comments (as necessary):

Sheet g. Construction
A1: Budget Justification for SF 424A Budget | B1: Award Recipient: | C1: ='Instructions and Summary'!B4 -> 0 | D1: ='Instructions and Summary'!H1 -> 06/21/18 V 6.18
A2: g. Construction
A3: PLEASE READ!!! "Construction" for the purpose of budgeting, is defined as all types of work done on a particular building, including erecting, altering, or remodeling. Construction conducted by the award recipient is entered on this page. Any construction work that is performed by a vendor or subrecipient to the award recipient should be entered under f. Contractual. List all proposed construction below, providing a basis of cost such as engineering estimates, prior construction, etc., and briefly justify its need as it applies to the Statement of Project Objectives and accompanying Technical Milestones and Deliverables being performed.
A5: Overall description of construction activities:
A6: EXAMPLE ONLY!!! "Build wind turbine platform"
A8: General Description | B8: Cost | C8: Basis of Cost | D8: Justification of Need
A9: EXAMPLE ONLY!!! Three days of excavation for platform site | B9: 28000 | C9: Engineering estimate | D9: Site must be prepared for construction of platform.
A10: Phase I
A16: Year 1 Total | B16: =SUM(B11:B15) -> 0
A18: Phase 2 Year 1
A24: Year 2 Total | B24: =SUM(B19:B23) -> 0
A26: Phase II Year 2
A32: Year 3 Total | B32: =SUM(B27:B31) -> 0
A34: Phase IIS
A40: Year 4 Total | B40: =SUM(B35:B39) -> 0
A42: PROJECT TOTAL | B42: =$B$32+$B$24+$B$16+$B$40 -> 0
A44: Additional Explanations/Comments (as necessary):

Sheet h. Other
A1: Budget Justification for SF 424A Budget Award Recipient: | C1: ='Instructions and Summary'!B4 -> 0 | D1: ='Instructions and Summary'!H1 -> 06/21/18 V 6.18
A2: h. Other Direct Costs
A3: PLEASE READ!!! Applicants must provide and justify proposed costs related to Other Direct Costs for each phase of the entire budget period. Other Direct Costs are direct cost items required for the project which do not fit clearly into other categories, and are not included in the indirect pool for which the indirect rate is being applied to this project. Applicants must provide a basis of cost (e.g., vendor quotes, prior purchases of similar or like items, published price list, etc.). Note for Patent Costs: ARPA-E will reimburse up to $30,000 in expenditures incurred under the funding agreement for costs and fees relating to the filing and prosecution of U.S. patent applications on subject inventions disclosed to ARPA-E and DOE in accordance with Attachment 2 to the funding agreement (http://arpa-e.energy.gov/FundingAgreements/CooperativeAgreements.aspx). Prime Recipients may use costs and fees in excess of $30,000 to meet their cost share obligations under the funding agreement. ARPA-E will not reimburse any costs and fees relating to the filing and prosecution of foreign patent applications on subject inventions disclosed to ARPA-E and DOE in accordance with Attachment 2 to the funding agreement. However, Prime Recipients may use such costs and fees to meet their cost share obligations. For examples of allowable patent costs, please see Section IV.G.3 of the FOA.
A20: General description | B20: Cost | C20: Basis of Cost | D20: Justification of Need
A21: EXAMPLE ONLY!!! Grad student tuition | B21: 16000 | C21: Established UCD costs | D21: Support of graduate students working on project
A22: EXAMPLE ONLY!!! Contractual | B22: 10000 | C22: Vendor Quote | D22: Personnel costs to develop commercialization plans
A23: EXAMPLE ONLY!!! Conferences | B23: 4000 | C23: Travel & Conference Expenses | D23: ARPA-E Energy Summit travel and registration
C24: Phase I (12 Months)
A43: Year 1 Total | B43: =SUM(B25:B42) -> 0
C45: Phase II Year 1 (12 Months)
A64: Year 2 Total | B64: =SUM(B46:B63) -> 0
C66: Phase II Year 2 (12 Months)
A85: Year 3 Total | B85: =SUM(B67:B84) -> 0
C87: Phase IIS (12 Months)
A106: Year 4 Total | B106: =SUM(B88:B105) -> 0
A108: PROJECT TOTAL | B108: =B85+B64+B43+B106 -> 0
A110: Additional Explanations/Comments (as necessary):

Sheet i. Indirect Costs
A1: Budget Justification for SF 424A Budget Award Recipient: | E1: ='Instructions and Summary'!B4 -> 0 | G1: ='Instructions and Summary'!D4 -> Submitted by: | J1: ='Instructions and Summary'!H1 -> 06/21/18 V 6.18
A2: i. Indirect Costs
A3: Rate type: | D3: Year 1 | E3: Year 2 | F3: Year 3 | G3: Year 4 | H3: Year 5 | I3: Total
D4: 0 | E4: 0 | F4: 0 | G4: 0 | H4: 0
D5: 0 | E5: 0 | F5: 0 | G5: 0 | H5: 0
D6: 0 | E6: 0 | F6: 0 | G6: 0 | H6: 0
D7: 0 | E7: 0 | F7: 0 | G7: 0 | H7: 0
D8: 0 | E8: 0 | F8: 0 | G8: 0 | H8: 0
A9: Total indirect costs requested: | D9: 0 | E9: 0 | F9: 0 | G9: 0 | H9: 0 | I9: =SUM(D9:H9) -> 0
A10: =IF(A14=A16,"One box should be checked in the indirect rate agreement section.","") -> One box should be checked in the indirect rate agreement section.
A12: Applicants are required to indicate if they have a Federally approved indirect rate agreement.
A13: If reimbursement for indirect costs is requested, a federally approved indirect rate agreement , or an indirect rate proposal is required in accordance with the instructions below. The indirect rate proposal must be accepted by ARPA-E for estimating purposes. Calculate the indirect rate/dollars and enter this information above. | M13: x
B14: An indirect rate has been negotiated with, or approved by, a Federal government agency. A copy of the latest rate agreement is included with the Full Application (*see information below).
B16: An indirect rate agreement has not been negotiated with, or approved by, a Federal government agency (*see information below).
B17: If an Applicant is selected for award negotiations and does not have a Federally approved indirect rate agreement, then the Applicant is required to submit an Indirect Rate Proposal to the Contracting Officer. A template for Indirect Rate Proposal is available at http://arpa-e.energy.gov/FundingAgreements/Overview.aspx. The Applicant must provide this information to the Contracting Officer at ARPA-E-CO@hq.doe.gov within 2 days after the receiving the award notification. In the subject line of the email, please state “Rate Proposal” and include the Applicant’s name, FOA name and number, and application control number.
A20: *IMPORTANT: In the space provided below (or as an attachment) provide a complete explanation and the full calculations used to derive the total indirect costs. If the total indirect costs are a cumulative amount of more than one calculation or rate application, the explanation and calculations should identify all rates used, along with the base they were applied to (and how the base was derived), and a total for each (along with grand total). Do not average the rates and apply them to get one indirect cost percentage. NOTE: You must apply the indirect rate to both the Federal Share and Recipient Cost Share.
A22: Explanations/Comments/Calculations/Formula:

Sheet Cost Share
A1: Budget Justification for SF 424A Budget Award Recipient: | D1: ='Instructions and Summary'!B4 -> 0 | F1: ='Instructions and Summary'!H1 -> 06/21/18 V 6.18
A2: Cost Share
A3: PLEASE READ!!! Applicants must provide and justify proposed costs related to Cost Share for Phase II and Phase IIS of the project. Applicants must provide a detailed explanation of the cash or cash value of all cost share proposed for the project. Please refer to Section III.D of the FOA for guidance on allowable cost share contributions. Applicants selected for award negotiations must provide cost share commitment letters, as described in Section VI.B.3 of the FOA. Project teams are not permitted to receive fees or profits under ARPA-E awards. All monies must be spent on activities or equipment directly related to meeting the objectives in the Statement of Project Objectives and accompanying Technical Milestones and Deliverables. Additionally, foregone fee or profit by any member of the proposed Project Team may not be considered cost sharing under any resulting award.
A5: Organization/Source | B5: Type | C5: Type of Donor (MUST SELECT) | D5: Cost Share Item | E5: Phase I Year 1 (12 Months) | F5: Phase II Year 1 (12 Months) | G5: Phase II Year 2 (12 Months) | H5: Phase 2S (12 Months) | I5: Total Project Cost Share
A6: EXAMPLE ONLY!!! ABC Company | B6: Cash | C6: Other | D6: Project partner ABC Company will provide 40 PV modules for product development at 50% off the of the retail price of $680 | E6: There is no Cost Share | F6: 4000 | G6: 4000 | H6: 5000 | I6: =SUM(E6:H6) -> 13000
I7: 0 | K7: Cash
I8: 0 | K8: In Kind
I9: 0 | K9: Other
I10: 0
I11: 0
I12: 0
I13: 0 | K13: Applicant | L13: =SUMIF($C$7:$C$24,$K$13,E$7:E$24) -> 0 | M13: =SUMIF($C$7:$C$24,$K$13,F$7:F$24) -> 0 | N13: =SUMIF($C$7:$C$24,$K$13,G$7:G$24) -> 0 | O13: =SUMIF($C$7:$C$24,$K$13,H$7:H$24) -> 0 | P13: =SUMIF($C$7:$C$24,$K$13,#REF!) -> 
I14: 0 | K14: State | L14: =SUMIF($C$7:$C$24,$K$14,E$7:E$24) -> 0 | M14: =SUMIF($C$7:$C$24,$K$14,F$7:F$24) -> 0 | N14: =SUMIF($C$7:$C$24,$K$14,G$7:G$24) -> 0 | O14: =SUMIF($C$7:$C$24,$K$14,H$7:H$24) -> 0 | P14: =SUMIF($C$7:$C$24,$K$14,#REF!) -> 
I15: 0 | K15: Other Sources | L15: =SUMIF($C$7:$C$24,$K$15,E$7:E$24) -> 0 | M15: =SUMIF($C$7:$C$24,$K$15,F$7:F$24) -> 0 | N15: =SUMIF($C$7:$C$24,$K$15,G$7:G$24) -> 0 | O15: =SUMIF($C$7:$C$24,$K$15,H$7:H$24) -> 0 | P15: =SUMIF($C$7:$C$24,$K$15,#REF!) -> 
I16: 0
I17: 0
I18: 0
I19: 0
I20: 0
I21: 0
I22: 0
I23: 0
I24: 0
A25: Totals | E25: =SUM(E7:E24) -> 0 | F25: =SUM(F7:F24) -> 0 | G25: =SUM(G7:G24) -> 0 | H25: =SUM(H7:H24) -> 0 | I25: 0
A27: Total Project Cost: | D27: ='Instructions and Summary'!F24 -> 0 | E27: Cost Share Percent of Award: | I27: =IFERROR(I25/D27,"") -> 
A29: Additional Explanations/Comments (as necessary):
